[Event "Titled Tuesday Blitz January 25 2022"]
[White "Karabalis, Harilos"]
[Black "Mitusov, Semen"]
[WhiteFideId "4621808"]
[BlackFideId "14151049"]
[WhiteElo "2168"]
[BlackElo "2246"]
[Result "1-0"]
[Round "04"]
[TimeControl "180+1"]
[Date "2022.01.26"]
[WhiteClock "0:01:01"]
[BlackClock "0:00:05"]

1. e4 {[%clk 0:03:00]}  e5 {[%clk 0:03:00]} 2. Nf3 {[%clk 0:03:00]}  Nc6 {[%clk 0:02:59]} 3. Bb5 {[%clk 0:03:01]}  a6 {[%clk 0:03:00]} 4. Ba4 {[%clk 0:03:01]}  Nf6 {[%clk 0:03:00]} 5. O-O {[%clk 0:03:01]}  Be7 {[%clk 0:03:00]} 6. d3 {[%clk 0:03:00]}  b5 {[%clk 0:03:00]} 7. Bb3 {[%clk 0:03:00]}  O-O {[%clk 0:03:01]} 8. h3 {[%clk 0:02:57]}  d6 {[%clk 0:02:56]} 9. c3 {[%clk 0:02:56]}  Re8 {[%clk 0:02:55]} 10. Re1 {[%clk 0:02:55]}  Bf8 {[%clk 0:02:55]} 11. Nbd2 {[%clk 0:02:54]}  Na5 {[%clk 0:02:50]} 12. Bc2 {[%clk 0:02:54]}  c5 {[%clk 0:02:50]} 13. Nf1 {[%clk 0:02:53]}  Nc6 {[%clk 0:02:50]} 14. Ng3 {[%clk 0:02:52]}  h6 {[%clk 0:02:50]} 15. a4 {[%clk 0:02:51]}  b4 {[%clk 0:02:49]} 16. Be3 {[%clk 0:02:50]}  Rb8 {[%clk 0:02:47]} 17. d4 {[%clk 0:02:47]}  cxd4 {[%clk 0:02:37]} 18. cxd4 {[%clk 0:02:47]}  exd4 {[%clk 0:02:32]} 19. Nxd4 {[%clk 0:02:46]}  Nxd4 {[%clk 0:02:32]} 20. Bxd4 {[%clk 0:02:46]}  Be6 {[%clk 0:02:31]} 21. Bb3 {[%clk 0:02:44]}  Qa5 {[%clk 0:02:03]} 22. Bxf6 {[%clk 0:02:31]}  gxf6 {[%clk 0:02:02]} 23. Bxe6 {[%clk 0:02:31]}  fxe6 {[%clk 0:01:58]} 24. b3 {[%clk 0:02:24]}  Rb7 {[%clk 0:01:51]} 25. Rc1 {[%clk 0:02:22]}  Rg7 {[%clk 0:01:44]} 26. Qf3 {[%clk 0:02:22]}  Rg6 {[%clk 0:01:40]} 27. Rc6 {[%clk 0:02:16]}  Kh7 {[%clk 0:01:22]} 28. Rec1 {[%clk 0:02:15]}  Bg7 {[%clk 0:01:22]} 29. Rc7 {[%clk 0:02:14]}  Rf8 {[%clk 0:01:14]} 30. Re7 {[%clk 0:02:06]}  f5 {[%clk 0:01:01]} 31. Rcc7 {[%clk 0:02:01]}  Qe5 {[%clk 0:00:54]} 32. exf5 {[%clk 0:01:58]}  Qa1+ {[%clk 0:00:44]} 33. Kh2 {[%clk 0:01:51]}  exf5 {[%clk 0:00:44]} 34. Nh5 {[%clk 0:01:44]}  Rg8 {[%clk 0:00:19]} 35. Qxf5 {[%clk 0:01:39]}  Kh8 {[%clk 0:00:18]} 36. Qxg6 {[%clk 0:01:37]}  Be5+ {[%clk 0:00:18]} 37. f4 {[%clk 0:01:28]}  Rxg6 {[%clk 0:00:17]} 38. fxe5 {[%clk 0:01:28]}  dxe5 {[%clk 0:00:12]} 39. Nf6 {[%clk 0:01:13]}  Rxg2+ {[%clk 0:00:09]} 40. Kxg2 {[%clk 0:01:12]}  Qb2+ {[%clk 0:00:10]} 41. Kg3 {[%clk 0:01:06]}  Qxb3+ {[%clk 0:00:10]} 42. Kh4 {[%clk 0:01:03]}  Qc4+ {[%clk 0:00:05]} 43. Rxc4 {[%clk 0:01:01]} 1-0


[Site "https://www.chess.com"]

[Event "Titled Tuesday Blitz January 25 2022"]
[White "Khripachenko, Alexander"]
[Black "Hjartarson, Johann"]
[WhiteFideId "54184975"]
[BlackFideId "2300044"]
[WhiteElo "2177"]
[BlackElo "2484"]
[Result "1-0"]
[Round "04"]
[TimeControl "180+1"]
[Date "2022.01.26"]
[WhiteClock "0:00:13"]
[BlackClock "0:00:01"]

1. e4 {[%clk 0:03:00]}  e6 {[%clk 0:02:59]} 2. d4 {[%clk 0:03:00]}  d5 {[%clk 0:03:00]} 3. Nd2 {[%clk 0:03:00]}  Nf6 {[%clk 0:02:59]} 4. e5 {[%clk 0:03:01]}  Nfd7 {[%clk 0:02:59]} 5. f4 {[%clk 0:03:01]}  c5 {[%clk 0:02:59]} 6. c3 {[%clk 0:03:01]}  Nc6 {[%clk 0:02:59]} 7. Ndf3 {[%clk 0:03:01]}  Qb6 {[%clk 0:02:58]} 8. a3 {[%clk 0:02:56]}  a5 {[%clk 0:02:56]} 9. b3 {[%clk 0:02:54]}  f5 {[%clk 0:02:53]} 10. Rb1 {[%clk 0:02:50]}  cxd4 {[%clk 0:02:49]} 11. cxd4 {[%clk 0:02:49]}  Be7 {[%clk 0:02:47]} 12. Bb2 {[%clk 0:02:44]}  O-O {[%clk 0:02:45]} 13. Bd3 {[%clk 0:02:44]}  Ndb8 {[%clk 0:02:42]} 14. Ne2 {[%clk 0:02:43]}  Bd7 {[%clk 0:02:40]} 15. O-O {[%clk 0:02:42]}  Be8 {[%clk 0:02:40]} 16. Kh1 {[%clk 0:02:42]}  Na6 {[%clk 0:02:39]} 17. Qd2 {[%clk 0:02:36]}  Nc7 {[%clk 0:02:38]} 18. h3 {[%clk 0:02:33]}  Nb5 {[%clk 0:02:24]} 19. Ra1 {[%clk 0:02:27]}  Bg6 {[%clk 0:02:13]} 20. Rfc1 {[%clk 0:02:25]}  Rfc8 {[%clk 0:02:10]} 21. Kh2 {[%clk 0:01:42]}  Bh5 {[%clk 0:02:08]} 22. Qe3 {[%clk 0:01:33]}  Rc7 {[%clk 0:01:59]} 23. a4 {[%clk 0:01:24]}  Nba7 {[%clk 0:01:55]} 24. g4 {[%clk 0:01:09]}  fxg4 {[%clk 0:01:49]} 25. Ng3 {[%clk 0:01:09]}  gxf3 {[%clk 0:01:35]} 26. Nxh5 {[%clk 0:01:09]}  g6 {[%clk 0:01:27]} 27. Rg1 {[%clk 0:01:01]}  Qxb3 {[%clk 0:01:24]} 28. Bc1 {[%clk 0:00:20]}  Kh8 {[%clk 0:00:50]} 29. f5 {[%clk 0:00:18]}  exf5 {[%clk 0:00:35]} 30. Nf4 {[%clk 0:00:18]}  Bf8 {[%clk 0:00:20]} 31. Rb1 {[%clk 0:00:11]}  Qxa4 {[%clk 0:00:14]} 32. Ne6 {[%clk 0:00:11]}  Re7 {[%clk 0:00:09]} 33. Nxf8 {[%clk 0:00:12]}  Rxf8 {[%clk 0:00:08]} 34. Qh6 {[%clk 0:00:13]}  Rg8 {[%clk 0:00:01]} 35. Bg5 {[%clk 0:00:13]} 1-0


[Site "https://www.chess.com"]

[Event "Titled Tuesday Blitz January 25 2022"]
[White "Kislov, Oleg"]
[Black "Zhigalko, Sergei"]
[WhiteFideId "13503774"]
[BlackFideId "13502956"]
[WhiteElo "2252"]
[BlackElo "2662"]
[Result "0-1"]
[Round "04"]
[TimeControl "180+1"]
[Date "2022.01.26"]
[WhiteClock "0:00:14"]
[BlackClock "0:00:04"]

1. e4 {[%clk 0:02:57]}  c5 {[%clk 0:02:59]} 2. Nf3 {[%clk 0:02:52]}  Nc6 {[%clk 0:02:59]} 3. c3 {[%clk 0:02:52]}  Nf6 {[%clk 0:02:58]} 4. e5 {[%clk 0:02:51]}  Nd5 {[%clk 0:02:58]} 5. d4 {[%clk 0:02:52]}  cxd4 {[%clk 0:02:58]} 6. cxd4 {[%clk 0:02:52]}  d6 {[%clk 0:02:56]} 7. Bc4 {[%clk 0:02:52]}  Nb6 {[%clk 0:02:54]} 8. Bb5 {[%clk 0:02:52]}  d5 {[%clk 0:02:49]} 9. h3 {[%clk 0:02:47]}  Bf5 {[%clk 0:02:46]} 10. Nc3 {[%clk 0:02:46]}  Rc8 {[%clk 0:02:42]} 11. O-O {[%clk 0:02:46]}  e6 {[%clk 0:02:42]} 12. Bg5 {[%clk 0:02:42]}  Be7 {[%clk 0:02:42]} 13. Bxe7 {[%clk 0:02:42]}  Qxe7 {[%clk 0:02:43]} 14. a3 {[%clk 0:02:40]}  O-O {[%clk 0:02:41]} 15. Bd3 {[%clk 0:02:37]}  Bxd3 {[%clk 0:02:22]} 16. Qxd3 {[%clk 0:02:38]}  a6 {[%clk 0:02:17]} 17. Rfc1 {[%clk 0:02:14]}  Rc7 {[%clk 0:02:08]} 18. b3 {[%clk 0:02:00]}  Rfc8 {[%clk 0:02:08]} 19. Ne2 {[%clk 0:01:25]}  h6 {[%clk 0:01:59]} 20. Nf4 {[%clk 0:01:07]}  Nxe5 {[%clk 0:01:41]} 21. Rxc7 {[%clk 0:01:00]}  Nxf3+ {[%clk 0:01:37]} 22. Qxf3 {[%clk 0:00:57]}  Rxc7 {[%clk 0:01:28]} 23. Nh5 {[%clk 0:00:46]}  Qg5 {[%clk 0:01:22]} 24. Re1 {[%clk 0:00:43]}  Rc1 {[%clk 0:00:49]} 25. Rxc1 {[%clk 0:00:38]}  Qxc1+ {[%clk 0:00:50]} 26. Kh2 {[%clk 0:00:39]}  Qg5 {[%clk 0:00:41]} 27. g3 {[%clk 0:00:37]}  Nd7 {[%clk 0:00:33]} 28. h4 {[%clk 0:00:30]}  Qd2 {[%clk 0:00:20]} 29. Qe3 {[%clk 0:00:18]}  Qxe3 {[%clk 0:00:16]} 30. fxe3 {[%clk 0:00:19]}  Nf6 {[%clk 0:00:09]} 31. Nf4 {[%clk 0:00:19]}  Ng4+ {[%clk 0:00:09]} 32. Kg2 {[%clk 0:00:17]}  Nxe3+ {[%clk 0:00:10]} 33. Kf3 {[%clk 0:00:17]}  Nf5 {[%clk 0:00:10]} 34. Ne2 {[%clk 0:00:17]}  h5 {[%clk 0:00:08]} 35. Kf4 {[%clk 0:00:16]}  f6 {[%clk 0:00:08]} 36. a4 {[%clk 0:00:14]}  a5 {[%clk 0:00:07]} 37. g4 {[%clk 0:00:12]}  hxg4 {[%clk 0:00:07]} 38. Kxg4 {[%clk 0:00:13]}  Kf7 {[%clk 0:00:07]} 39. h5 {[%clk 0:00:13]}  Ke7 {[%clk 0:00:07]} 40. Kf4 {[%clk 0:00:13]}  Nxd4 {[%clk 0:00:04]} 41. Nxd4 {[%clk 0:00:12]}  e5+ {[%clk 0:00:04]} 42. Kf5 {[%clk 0:00:13]}  exd4 {[%clk 0:00:05]} 43. Kg6 {[%clk 0:00:14]}  Kf8 {[%clk 0:00:04]} 0-1


[Site "https://www.chess.com"]

[Event "Titled Tuesday Blitz January 25 2022"]
[White "Klyashtorny, Vladislav"]
[Black "Iskusnyh, Sergei"]
[WhiteFideId "4170938"]
[BlackFideId "4120027"]
[WhiteElo "2414"]
[BlackElo "2492"]
[Result "0-1"]
[Round "04"]
[TimeControl "180+1"]
[Date "2022.01.26"]
[WhiteClock "0:01:44"]
[BlackClock "0:01:07"]

1. e4 {[%clk 0:02:56]}  e6 {[%clk 0:02:58]} 2. d4 {[%clk 0:02:55]}  d5 {[%clk 0:02:58]} 3. Nc3 {[%clk 0:02:54]}  Nf6 {[%clk 0:02:58]} 4. e5 {[%clk 0:02:54]}  Nfd7 {[%clk 0:02:57]} 5. f4 {[%clk 0:02:54]}  c5 {[%clk 0:02:58]} 6. Nf3 {[%clk 0:02:54]}  Be7 {[%clk 0:02:57]} 7. Be3 {[%clk 0:02:54]}  O-O {[%clk 0:02:57]} 8. Qd2 {[%clk 0:02:55]}  a6 {[%clk 0:02:56]} 9. a3 {[%clk 0:02:55]}  b5 {[%clk 0:02:51]} 10. h4 {[%clk 0:02:55]}  Nc6 {[%clk 0:02:38]} 11. g3 {[%clk 0:02:50]}  Bb7 {[%clk 0:02:16]} 12. Bd3 {[%clk 0:02:46]}  cxd4 {[%clk 0:02:09]} 13. Nxd4 {[%clk 0:02:45]}  Nxd4 {[%clk 0:02:08]} 14. Bxd4 {[%clk 0:02:45]}  Nc5 {[%clk 0:02:07]} 15. b4 {[%clk 0:02:32]}  Ne4 {[%clk 0:02:04]} 16. Qe3 {[%clk 0:02:29]}  Nxc3 {[%clk 0:01:55]} 17. Bxc3 {[%clk 0:02:28]}  d4 {[%clk 0:01:56]} 18. Bxd4 {[%clk 0:02:19]}  Bxh1 {[%clk 0:01:54]} 19. O-O-O {[%clk 0:02:19]}  Bd5 {[%clk 0:01:48]} 20. f5 {[%clk 0:02:12]}  exf5 {[%clk 0:01:34]} 21. Bxf5 {[%clk 0:02:12]}  g6 {[%clk 0:01:34]} 22. Bd3 {[%clk 0:01:55]}  a5 {[%clk 0:01:27]} 23. Qh6 {[%clk 0:01:48]}  Be6 {[%clk 0:01:22]} 24. Bc3 {[%clk 0:01:47]}  Qc7 {[%clk 0:01:19]} 25. Kd2 {[%clk 0:01:46]}  axb4 {[%clk 0:01:17]} 26. axb4 {[%clk 0:01:46]}  Ra3 {[%clk 0:01:14]} 27. Bd4 {[%clk 0:01:46]}  Bxb4+ {[%clk 0:01:12]} 28. Ke2 {[%clk 0:01:45]}  Rxd3 {[%clk 0:01:08]} 29. Rxd3 {[%clk 0:01:44]}  Qxc2+ {[%clk 0:01:07]} 0-1


[Site "https://www.chess.com"]

[Event "Titled Tuesday Blitz January 25 2022"]
[White "Leiva, Gianmarco"]
[Black "Poliannikov, Danila"]
[WhiteFideId "3804399"]
[BlackFideId "30935245"]
[WhiteElo "2328"]
[BlackElo "2532"]
[Result "0-1"]
[Round "04"]
[TimeControl "180+1"]
[Date "2022.01.26"]
[WhiteClock "0:00:25"]
[BlackClock "0:00:05"]

1. e4 {[%clk 0:03:00]}  e5 {[%clk 0:02:58]} 2. Nf3 {[%clk 0:03:01]}  Nc6 {[%clk 0:02:58]} 3. Bc4 {[%clk 0:03:01]}  Bc5 {[%clk 0:02:58]} 4. O-O {[%clk 0:03:01]}  Nf6 {[%clk 0:02:58]} 5. d3 {[%clk 0:03:02]}  O-O {[%clk 0:02:58]} 6. Re1 {[%clk 0:03:02]}  d6 {[%clk 0:02:55]} 7. c3 {[%clk 0:03:02]}  a6 {[%clk 0:02:52]} 8. Bb3 {[%clk 0:03:03]}  Ba7 {[%clk 0:02:49]} 9. h3 {[%clk 0:03:03]}  Be6 {[%clk 0:02:48]} 10. Bxe6 {[%clk 0:02:43]}  fxe6 {[%clk 0:02:48]} 11. Qb3 {[%clk 0:02:44]}  Qd7 {[%clk 0:02:40]} 12. Be3 {[%clk 0:02:27]}  Bxe3 {[%clk 0:02:27]} 13. Rxe3 {[%clk 0:02:28]}  Nh5 {[%clk 0:02:16]} 14. g3 {[%clk 0:02:24]}  Rab8 {[%clk 0:01:48]} 15. Nbd2 {[%clk 0:02:24]}  Qf7 {[%clk 0:01:43]} 16. Rf1 {[%clk 0:02:05]}  Kh8 {[%clk 0:01:36]} 17. Ng5 {[%clk 0:01:14]}  Qe7 {[%clk 0:01:31]} 18. h4 {[%clk 0:01:12]}  Rf6 {[%clk 0:01:23]} 19. Qd1 {[%clk 0:01:08]}  g6 {[%clk 0:01:18]} 20. Qg4 {[%clk 0:01:07]}  Rbf8 {[%clk 0:01:11]} 21. Rf3 {[%clk 0:01:05]}  Rxf3 {[%clk 0:01:07]} 22. Ndxf3 {[%clk 0:01:05]}  Ng7 {[%clk 0:00:59]} 23. Re1 {[%clk 0:00:57]}  Qf6 {[%clk 0:00:56]} 24. Re2 {[%clk 0:00:53]}  h6 {[%clk 0:00:47]} 25. Nh3 {[%clk 0:00:53]}  Qxf3 {[%clk 0:00:35]} 26. Qxf3 {[%clk 0:00:29]}  Rxf3 {[%clk 0:00:36]} 27. Rd2 {[%clk 0:00:29]}  Kg8 {[%clk 0:00:31]} 28. Kg2 {[%clk 0:00:29]}  Rf8 {[%clk 0:00:31]} 29. Ng1 {[%clk 0:00:23]}  Nh5 {[%clk 0:00:31]} 30. Nf3 {[%clk 0:00:23]}  Nf6 {[%clk 0:00:30]} 31. Nh2 {[%clk 0:00:22]}  Kg7 {[%clk 0:00:27]} 32. Nf3 {[%clk 0:00:22]}  Ng4 {[%clk 0:00:26]} 33. Ne1 {[%clk 0:00:22]}  d5 {[%clk 0:00:25]} 34. f3 {[%clk 0:00:22]}  Nf6 {[%clk 0:00:25]} 35. Nc2 {[%clk 0:00:22]}  Rd8 {[%clk 0:00:24]} 36. Re2 {[%clk 0:00:22]}  dxe4 {[%clk 0:00:23]} 37. dxe4 {[%clk 0:00:22]}  Rd1 {[%clk 0:00:22]} 38. Kf2 {[%clk 0:00:23]}  Nd7 {[%clk 0:00:20]} 39. Ne3 {[%clk 0:00:22]}  Ra1 {[%clk 0:00:21]} 40. a3 {[%clk 0:00:21]}  Nb6 {[%clk 0:00:19]} 41. Rd2 {[%clk 0:00:21]}  h5 {[%clk 0:00:16]} 42. c4 {[%clk 0:00:21]}  Nd4 {[%clk 0:00:11]} 43. c5 {[%clk 0:00:20]}  Nd7 {[%clk 0:00:11]} 44. c6 {[%clk 0:00:18]}  bxc6 {[%clk 0:00:10]} 45. Nc4 {[%clk 0:00:19]}  Kf6 {[%clk 0:00:06]} 46. Na5 {[%clk 0:00:19]}  Rc1 {[%clk 0:00:04]} 47. f4 {[%clk 0:00:17]}  Rc2 {[%clk 0:00:04]} 48. Rxc2 {[%clk 0:00:13]}  Nxc2 {[%clk 0:00:05]} 49. Nc4 {[%clk 0:00:14]}  exf4 {[%clk 0:00:05]} 50. gxf4 {[%clk 0:00:15]}  e5 {[%clk 0:00:05]} 51. Kf3 {[%clk 0:00:15]}  exf4 {[%clk 0:00:05]} 52. Kxf4 {[%clk 0:00:16]}  Nd4 {[%clk 0:00:05]} 53. e5+ {[%clk 0:00:16]}  Ke6 {[%clk 0:00:05]} 54. Ke4 {[%clk 0:00:17]}  Nb5 {[%clk 0:00:04]} 55. Na5 {[%clk 0:00:18]}  Na7 {[%clk 0:00:04]} 56. Nc4 {[%clk 0:00:17]}  c5 {[%clk 0:00:04]} 57. Kf4 {[%clk 0:00:18]}  Nc8 {[%clk 0:00:03]} 58. Kg5 {[%clk 0:00:18]}  Ne7 {[%clk 0:00:04]} 59. Kf4 {[%clk 0:00:18]}  Nd5+ {[%clk 0:00:04]} 60. Ke4 {[%clk 0:00:18]}  Ne7 {[%clk 0:00:03]} 61. Kf4 {[%clk 0:00:19]}  Nf5 {[%clk 0:00:04]} 62. Kg5 {[%clk 0:00:19]}  Nxe5 {[%clk 0:00:04]} 63. Nd2 {[%clk 0:00:20]}  Ne7 {[%clk 0:00:03]} 64. Ne4 {[%clk 0:00:20]}  Nf7+ {[%clk 0:00:03]} 65. Kf4 {[%clk 0:00:20]}  Kd5 {[%clk 0:00:03]} 66. Nf6+ {[%clk 0:00:19]}  Kc4 {[%clk 0:00:04]} 67. Ne8 {[%clk 0:00:19]}  Kb3 {[%clk 0:00:03]} 68. Nxc7 {[%clk 0:00:19]}  Kxb2 {[%clk 0:00:03]} 69. Nxa6 {[%clk 0:00:20]}  c4 {[%clk 0:00:04]} 70. a4 {[%clk 0:00:21]}  c3 {[%clk 0:00:04]} 71. Nc5 {[%clk 0:00:21]}  c2 {[%clk 0:00:03]} 72. Nd3+ {[%clk 0:00:22]}  Kc3 {[%clk 0:00:03]} 73. Nc1 {[%clk 0:00:22]}  Nd5+ {[%clk 0:00:03]} 74. Ke4 {[%clk 0:00:22]}  Nb4 {[%clk 0:00:03]} 75. a5 {[%clk 0:00:21]}  Nd6+ {[%clk 0:00:03]} 76. Ke5 {[%clk 0:00:21]}  Nf5 {[%clk 0:00:04]} 77. Kf6 {[%clk 0:00:21]}  Nxh4 {[%clk 0:00:04]} 78. a6 {[%clk 0:00:22]}  Nxa6 {[%clk 0:00:04]} 79. Kg5 {[%clk 0:00:23]}  Nf3+ {[%clk 0:00:04]} 80. Kf4 {[%clk 0:00:23]}  Nd4 {[%clk 0:00:04]} 81. Kg3 {[%clk 0:00:24]}  Nb4 {[%clk 0:00:04]} 82. Kf2 {[%clk 0:00:24]}  Nd3+ {[%clk 0:00:04]} 83. Ke3 {[%clk 0:00:24]}  Nxc1 {[%clk 0:00:05]} 84. Kf4 {[%clk 0:00:25]}  Nd3+ {[%clk 0:00:05]} 0-1


[Site "https://www.chess.com"]

[Event "Titled Tuesday Blitz January 25 2022"]
[White "Maksimovic, Bojan"]
[Black "Jobava, Baadur"]
[WhiteFideId "14408120"]
[BlackFideId "13601520"]
[WhiteElo "2750"]
[BlackElo "2913"]
[Result "0-1"]
[Round "04"]
[TimeControl "180+1"]
[Date "2022.01.26"]
[WhiteClock "0:00:01"]
[BlackClock "0:00:21"]

1. e4 {[%clk 0:03:00]}  c6 {[%clk 0:02:55]} 2. d4 {[%clk 0:03:00]}  d5 {[%clk 0:02:56]} 3. Nc3 {[%clk 0:03:01]}  dxe4 {[%clk 0:02:56]} 4. Nxe4 {[%clk 0:03:02]}  Bf5 {[%clk 0:02:56]} 5. Nc5 {[%clk 0:03:02]}  b6 {[%clk 0:02:55]} 6. Nb3 {[%clk 0:03:02]}  e6 {[%clk 0:02:56]} 7. Nf3 {[%clk 0:03:02]}  Nd7 {[%clk 0:02:55]} 8. g3 {[%clk 0:03:02]}  Ngf6 {[%clk 0:02:47]} 9. Bg2 {[%clk 0:03:02]}  Rc8 {[%clk 0:02:45]} 10. O-O {[%clk 0:03:01]}  Be7 {[%clk 0:02:44]} 11. Qe2 {[%clk 0:02:49]}  O-O {[%clk 0:02:42]} 12. Ne5 {[%clk 0:02:45]}  Nxe5 {[%clk 0:02:35]} 13. dxe5 {[%clk 0:02:46]}  Nd5 {[%clk 0:02:36]} 14. a3 {[%clk 0:02:44]}  b5 {[%clk 0:02:28]} 15. c4 {[%clk 0:02:35]}  bxc4 {[%clk 0:02:28]} 16. Qxc4 {[%clk 0:02:36]}  Nb6 {[%clk 0:02:25]} 17. Qc3 {[%clk 0:02:21]}  c5 {[%clk 0:02:11]} 18. Be3 {[%clk 0:01:46]}  Nd5 {[%clk 0:02:06]} 19. Qc1 {[%clk 0:01:45]}  c4 {[%clk 0:02:03]} 20. Nd4 {[%clk 0:01:43]}  Bd3 {[%clk 0:02:03]} 21. Rd1 {[%clk 0:01:16]}  Nxe3 {[%clk 0:02:03]} 22. fxe3 {[%clk 0:01:17]}  Qb6 {[%clk 0:01:51]} 23. Bf1 {[%clk 0:00:39]}  Rfd8 {[%clk 0:01:40]} 24. Bxd3 {[%clk 0:00:34]}  cxd3 {[%clk 0:01:41]} 25. Qd2 {[%clk 0:00:34]}  Rxd4 {[%clk 0:01:37]} 26. exd4 {[%clk 0:00:31]}  Qxd4+ {[%clk 0:01:38]} 27. Qf2 {[%clk 0:00:32]}  Qxe5 {[%clk 0:01:34]} 28. Qf3 {[%clk 0:00:14]}  Qxb2 {[%clk 0:01:25]} 29. Rab1 {[%clk 0:00:13]}  Qxa3 {[%clk 0:01:22]} 30. Rxd3 {[%clk 0:00:13]}  Qc5+ {[%clk 0:01:21]} 31. Kh1 {[%clk 0:00:12]}  Bf6 {[%clk 0:01:19]} 32. Rdb3 {[%clk 0:00:08]}  h6 {[%clk 0:01:02]} 33. Qe4 {[%clk 0:00:07]}  Qc2 {[%clk 0:00:41]} 34. Qxc2 {[%clk 0:00:03]}  Rxc2 {[%clk 0:00:42]} 35. Rb4 {[%clk 0:00:02]}  g5 {[%clk 0:00:24]} 36. Ra4 {[%clk 0:00:01]}  Rc7 {[%clk 0:00:24]} 37. Rb3 {[%clk 0:00:01]}  Kg7 {[%clk 0:00:24]} 38. Rba3 {[%clk 0:00:01]}  Rc1+ {[%clk 0:00:23]} 39. Kg2 {[%clk 0:00:01]}  Rc2+ {[%clk 0:00:24]} 40. Kh1 {[%clk 0:00:01]}  Be7 {[%clk 0:00:23]} 41. Ra2 {[%clk 0:00:02]}  Rc1+ {[%clk 0:00:24]} 42. Kg2 {[%clk 0:00:02]}  Bc5 {[%clk 0:00:24]} 43. Ra6 {[%clk 0:00:02]}  Bb6 {[%clk 0:00:24]} 44. R6a4 {[%clk 0:00:02]}  f5 {[%clk 0:00:23]} 45. Kf3 {[%clk 0:00:03]}  Kf6 {[%clk 0:00:23]} 46. h3 {[%clk 0:00:02]}  h5 {[%clk 0:00:24]} 47. Kg2 {[%clk 0:00:03]}  g4 {[%clk 0:00:24]} 48. hxg4 {[%clk 0:00:04]}  hxg4 {[%clk 0:00:24]} 49. Rb4 {[%clk 0:00:04]}  Rg1+ {[%clk 0:00:23]} 50. Kh2 {[%clk 0:00:04]}  Rc1 {[%clk 0:00:24]} 51. Rb3 {[%clk 0:00:04]}  e5 {[%clk 0:00:21]} 52. Kg2 {[%clk 0:00:04]}  f4 {[%clk 0:00:21]} 53. gxf4 {[%clk 0:00:04]}  exf4 {[%clk 0:00:22]} 54. Rb4 {[%clk 0:00:04]}  Kg5 {[%clk 0:00:21]} 55. Rb5+ {[%clk 0:00:04]}  Kh4 {[%clk 0:00:21]} 56. Rb4 {[%clk 0:00:02]}  f3+ {[%clk 0:00:20]} 57. Kh2 {[%clk 0:00:01]}  Bc7+ {[%clk 0:00:21]} 0-1


[Site "https://www.chess.com"]

[Event "Titled Tuesday Blitz January 25 2022"]
[White "Mirzoev, Azer"]
[Black "Ibrahimli, Murad"]
[WhiteFideId "13400304"]
[BlackFideId "13410229"]
[WhiteElo "2525"]
[BlackElo "2109"]
[Result "1/2-1/2"]
[Round "04"]
[TimeControl "180+1"]
[Date "2022.01.26"]
[WhiteClock "0:01:22"]
[BlackClock "0:00:10"]

1. d4 {[%clk 0:03:00]}  Nf6 {[%clk 0:03:00]} 2. Nf3 {[%clk 0:03:00]}  d5 {[%clk 0:02:59]} 3. Bf4 {[%clk 0:03:00]}  Bf5 {[%clk 0:02:54]} 4. e3 {[%clk 0:03:00]}  e6 {[%clk 0:02:54]} 5. Nbd2 {[%clk 0:03:00]}  Bd6 {[%clk 0:02:53]} 6. Bg3 {[%clk 0:03:00]}  Nbd7 {[%clk 0:02:52]} 7. c4 {[%clk 0:03:00]}  Bxg3 {[%clk 0:02:40]} 8. hxg3 {[%clk 0:03:00]}  c6 {[%clk 0:02:41]} 9. Qb3 {[%clk 0:02:58]}  Qc7 {[%clk 0:02:39]} 10. Be2 {[%clk 0:02:58]}  h6 {[%clk 0:02:38]} 11. O-O {[%clk 0:02:57]}  O-O {[%clk 0:02:38]} 12. Rac1 {[%clk 0:02:56]}  Qb6 {[%clk 0:02:38]} 13. Rfd1 {[%clk 0:02:54]}  Bg4 {[%clk 0:02:24]} 14. Re1 {[%clk 0:02:50]}  Qxb3 {[%clk 0:02:19]} 15. Nxb3 {[%clk 0:02:49]}  a5 {[%clk 0:02:19]} 16. a3 {[%clk 0:02:45]}  a4 {[%clk 0:02:18]} 17. Nbd2 {[%clk 0:02:45]}  Ra5 {[%clk 0:02:14]} 18. Bf1 {[%clk 0:02:41]}  Rb8 {[%clk 0:02:09]} 19. Nh4 {[%clk 0:02:35]}  g5 {[%clk 0:02:06]} 20. Nhf3 {[%clk 0:02:34]}  Kf8 {[%clk 0:02:04]} 21. Be2 {[%clk 0:02:30]}  Bf5 {[%clk 0:01:54]} 22. Kf1 {[%clk 0:02:29]}  Bh7 {[%clk 0:01:45]} 23. Nb1 {[%clk 0:02:26]}  Bxb1 {[%clk 0:01:35]} 24. Rxb1 {[%clk 0:02:26]}  Ne4 {[%clk 0:01:36]} 25. Red1 {[%clk 0:02:21]}  f5 {[%clk 0:01:35]} 26. Ke1 {[%clk 0:02:20]}  Ke7 {[%clk 0:01:34]} 27. Rbc1 {[%clk 0:02:19]}  Kd6 {[%clk 0:01:31]} 28. Nd2 {[%clk 0:02:19]}  Nxd2 {[%clk 0:01:29]} 29. Rxd2 {[%clk 0:02:19]}  Nf6 {[%clk 0:01:29]} 30. Bd3 {[%clk 0:02:17]}  h5 {[%clk 0:01:08]} 31. Ke2 {[%clk 0:02:15]}  Rh8 {[%clk 0:01:06]} 32. Rh1 {[%clk 0:02:13]}  Raa8 {[%clk 0:01:06]} 33. Rc2 {[%clk 0:02:13]}  h4 {[%clk 0:00:59]} 34. gxh4 {[%clk 0:02:13]}  Rxh4 {[%clk 0:00:59]} 35. Rxh4 {[%clk 0:02:12]}  gxh4 {[%clk 0:00:59]} 36. cxd5 {[%clk 0:02:12]}  Nxd5 {[%clk 0:01:00]} 37. Kf3 {[%clk 0:02:09]}  Rh8 {[%clk 0:00:54]} 38. Rc4 {[%clk 0:02:08]}  b5 {[%clk 0:00:53]} 39. Rc1 {[%clk 0:02:07]}  h3 {[%clk 0:00:53]} 40. gxh3 {[%clk 0:02:02]}  Rxh3+ {[%clk 0:00:54]} 41. Kg2 {[%clk 0:02:03]}  Rh8 {[%clk 0:00:52]} 42. Rh1 {[%clk 0:01:54]}  Rxh1 {[%clk 0:00:47]} 43. Kxh1 {[%clk 0:01:55]}  Nc7 {[%clk 0:00:47]} 44. Kg2 {[%clk 0:01:52]}  c5 {[%clk 0:00:48]} 45. dxc5+ {[%clk 0:01:51]}  Kxc5 {[%clk 0:00:49]} 46. Kf3 {[%clk 0:01:39]}  b4 {[%clk 0:00:39]} 47. axb4+ {[%clk 0:01:29]}  Kxb4 {[%clk 0:00:40]} 48. Bc2 {[%clk 0:01:29]}  Nd5 {[%clk 0:00:12]} 49. e4 {[%clk 0:01:28]}  fxe4+ {[%clk 0:00:13]} 50. Kxe4 {[%clk 0:01:28]}  Nb6 {[%clk 0:00:11]} 51. Ke5 {[%clk 0:01:24]}  Nc4+ {[%clk 0:00:09]} 52. Kxe6 {[%clk 0:01:24]}  Nxb2 {[%clk 0:00:09]} 53. Bxa4 {[%clk 0:01:22]}  Nxa4 {[%clk 0:00:10]} 54. f4 {[%clk 0:01:22]}  Nc5+ {[%clk 0:00:11]} 55. Ke7 {[%clk 0:01:22]}  Ne4 {[%clk 0:00:10]} 56. f5 {[%clk 0:01:21]}  Kc4 {[%clk 0:00:10]} 57. Ke6 {[%clk 0:01:22]}  Kd4 {[%clk 0:00:10]} 58. f6 {[%clk 0:01:22]}  Nxf6 {[%clk 0:00:10]} 1/2-1/2


[Site "https://www.chess.com"]